[Event "DVM U12W 2021"]
[Site "Willingen"]
[Date "2022.08.15"]
[Round "5"]
[White "Achilles, Rosa"]
[Black "Sayouf, Rafif"]
[Result "1-0"]
[ECO "D02"]
[WhiteElo "1026"]
[BlackElo "1102"]
[Annotator "NA RC"]
[PlyCount "88"]
[EventDate "2022.08.12"]
[EventType "team-tourn"]
[EventRounds "7"]
[EventCountry "GER"]
[SourceTitle "playchess.com"]
[Source "ChessBase"]
[SourceQuality "1"]
[TimeControl "40/5400+30:1800+30"]

1. d4 {[%emt 0:00:17]} d5 {[%emt 0:00:00]} 2. Nf3 {[%emt 0:00:10]} Nf6 {[%emt 0:00:04]} 3. g3 {[%emt 0:00:42]} Bf5 {[%emt 0:00:33]} 4. Bg2 {[%emt 0:00:30]} Nc6 {[%emt 0:01:24]} 5. a3 {[%emt 0:00:17]} e6 {[%emt 0:00:11]} 6. O-O {[%emt 0:00:30]} h6 {[%emt 0:00:36]} 7. c4 {[%emt 0:04:04]} dxc4 {[%emt 0:03:22]} 8. Be3 {[%emt 0:02:50]} Bd6 {[%emt 0:01:41]} 9. Qa4 {[%emt 0:01:14]} O-O {[%emt 0:01:29]} 10. Qxc4 {[%emt 0:08:09]} Be4 {[%emt 0:09:22]} 11. Nc3 {[%emt 0:03:00]} b6 {[%emt 0:01:55]} 12. Nxe4 {[%emt 0:01:46]} Na5 {[%emt 0:00:51]} 13. Nxf6+ {[%emt 0:00:12]} Qxf6 {[%emt 0:01:37]} 14. Qc2 {[%emt 0:00:37]} Rac8 {[%emt 0:02:42]} 15. Nd2 {[%emt 0:02:18]} c5 {[%emt 0:04:33]} 16. Ne4 {[%emt 0:00:29]} Qe7 {[%emt 0:01:25]} 17. Nxd6 {[%emt 0:00:10]} Qxd6 {[%emt 0:01:23]} 18. dxc5 {[%emt 0:00:16]} bxc5 {[%emt 0:01:11]} 19. Qc3 {[%emt 0:03:01]} Qb6 {[%emt 0:02:47]} 20. b4 {[%emt 0:00:57]} Nb7 {[%emt 0:00:52]} 21. Bxb7 {[%emt 0:00:05]} Qxb7 {[%emt 0:00:45]} 22. bxc5 {[%emt 0:01:03]} Qb5 {[%emt 0:01:27]} 23. Rfe1 {[%emt 0:01:18]} Rfe8 {[%emt 0:00:37]} 24. Qb4 {[%emt 0:00:20]} Qc6 {[%emt 0:01:14]} 25. Red1 {[%emt 0:02:04]} Qc7 {[%emt 0:01:23]} 26. Rac1 {[%emt 0:00:25]} Qe7 {[%emt 0:00:45]} 27. c6 {[%emt 0:00:05]} Qf6 {[%emt 0:03:59]} 28. c7 {[%emt 0:02:08]} e5 {[%emt 0:00:59]} 29. Bxa7 {[%emt 0:01:24]} Qa6 {[%emt 0:03:35]} 30. Be3 {[%emt 0:00:14]} Qxe2 {[%emt 0:01:55]} 31. Re1 {[%emt 0:00:12]} Qf3 {[%emt 0:01:53]} 32. h3 Re6 {[%emt 0:00:00]} 33. Red1 {[%emt 0:01:00]} Ree8 {[%emt 0:01:00]} 34. Qg4 Qf6 {[%emt 0:00:00]} 35. Qc4 {[%emt 0:01:00]} Qf3 {[%emt 0:01:00]} 36. Rd7 Qf6 {[%emt 0:00:00]} 37. Rcd1 {[%emt 0:01:00]} e4 {[%emt 0:00:00]} 38. Bd4 {[%emt 0:00:30]} Qf3 {[%emt 0:10:54]} 39. Ba1 {[%emt 0:06:17]} e3 {[%emt 0:01:06]} 40. Rf1 {[%emt 0:00:24]} e2 {[%emt 0:00:21]} 41. Re1 {[%emt 0:30:08]} Qf5 {[%emt 0:30:54]} 42. Qc3 {[%emt 0:03:20]} f6 {[%emt 0:01:43]} 43. Qc4+ {[%emt 0:00:49]} Kh8 {[%emt 0:00:23]} 44. Qd4 {[%emt 0:00:17]} Qa5 {[%emt 0:01:25]} 1-0

[Event "DVM U12W 2021"]
[Site "Willingen"]
[Date "2022.08.15"]
[Round "5"]
[White "Striebeck, Liv"]
[Black "Prokscha, Charlotte"]
[Result "1/2-1/2"]
[ECO "B22"]
[WhiteElo "1003"]
[BlackElo "1241"]
[Annotator "NA RC"]
[PlyCount "117"]
[EventDate "2022.08.12"]
[EventType "team-tourn"]
[EventRounds "7"]
[EventCountry "GER"]
[SourceTitle "playchess.com"]
[Source "ChessBase"]
[SourceQuality "1"]
[TimeControl "40/5400+30:1800+30"]

1. e4 {[%emt 0:00:02]} c5 {[%emt 0:00:07]} 2. d4 {[%emt 0:00:05]} cxd4 {[%emt 0:00:05]} 3. c3 {[%emt 0:00:04]} e6 {[%emt 0:00:36]} 4. cxd4 {[%emt 0:00:26]} Nf6 {[%emt 0:00:30]} 5. Nc3 {[%emt 0:00:26]} Bb4 {[%emt 0:00:41]} 6. Bd3 {[%emt 0:02:31]} Nc6 {[%emt 0:01:27]} 7. Nf3 {[%emt 0:00:07]} d5 {[%emt 0:02:33]} 8. e5 {[%emt 0:04:28]} Nd7 {[%emt 0:02:32]} 9. O-O {[%emt 0:03:12]} O-O {[%emt 0:00:12]} 10. a3 {[%emt 0:03:11]} Be7 {[%emt 0:01:31]} 11. Be3 {[%emt 0:07:20]} a6 {[%emt 0:02:44]} 12. g3 {[%emt 0:02:43]} b5 {[%emt 0:02:15]} 13. b4 {[%emt 0:03:05]} Bb7 {[%emt 0:01:56]} 14. Qc1 {[%emt 0:08:31]} Rc8 {[%emt 0:03:32]} 15. Rd1 {[%emt 0:01:39]} Nb6 {[%emt 0:05:03]} 16. Qd2 {[%emt 0:02:23]} Nc4 {[%emt 0:05:09]} 17. Bxc4 {[%emt 0:01:31]} bxc4 {[%emt 0:02:04]} 18. Rdb1 {[%emt 0:01:52]} Rb8 {[%emt 0:03:46]} 19. Kf1 {[%emt 0:03:36]} f6 {[%emt 0:05:06]} 20. h4 {[%emt 0:02:56]} fxe5 {[%emt 0:01:06]} 21. Nxe5 {[%emt 0:00:33]} Nxe5 {[%emt 0:01:28]} 22. dxe5 {[%emt 0:00:10]} Qc7 {[%emt 0:02:19]} 23. Bf4 {[%emt 0:01:51]} Bc6 {[%emt 0:01:44]} 24. f3 {[%emt 0:04:26]} Rf7 {[%emt 0:02:54]} 25. Kg2 {[%emt 0:02:19]} Rbf8 {[%emt 0:01:00]} 26. Rh1 {[%emt 0:02:23]} Qd8 {[%emt 0:07:21]} 27. Ne2 {[%emt 0:04:36]} Qd7 {[%emt 0:05:06]} 28. Nd4 {[%emt 0:05:58]} Bb5 {[%emt 0:04:07]} 29. Nxb5 {[%emt 0:02:00]} axb5 {[%emt 0:00:15]} 30. Raf1 {[%emt 0:03:27]} Qa7 {[%emt 0:02:37]} 31. Qc1 {[%emt 0:01:09]} d4 {[%emt 0:01:31]} 32. Bg5 {[%emt 0:01:59]} Qa8 {[%emt 0:03:01]} 33. Bxe7 {[%emt 0:01:49]} Rxe7 {[%emt 0:00:14]} 34. g4 {[%emt 0:06:02]} Qd5 {[%emt 0:00:27]} 35. Rh3 {[%emt 0:02:12]} Qxe5 {[%emt 0:00:25]} 36. Qe1 {[%emt 0:01:42]} Qxe1 {[%emt 0:00:29]} 37. Rxe1 {[%emt 0:00:07]} d3 {[%emt 0:00:17]} 38. Rhh1 {[%emt 0:01:38]} Ra8 {[%emt 0:00:36]} 39. Ra1 {[%emt 0:00:24]} e5 {[%emt 0:00:18]} 40. Kf2 {[%emt 0:01:06]} Rf8 {[%emt 0:01:59]} 41. Ke3 {[%emt 0:30:37]} Rfe8 {[%emt 0:30:47]} 42. a4 {[%emt 0:01:11]} bxa4 {[%emt 0:00:23]} 43. Rxa4 {[%emt 0:00:06]} e4 {[%emt 0:00:13]} 44. f4 {[%emt 0:00:39]} c3 {[%emt 0:00:18]} 45. b5 {[%emt 0:01:01]} Rd8 {[%emt 0:01:39]} 46. Rd4 {[%emt 0:02:26]} Rxd4 {[%emt 0:00:14]} 47. Kxd4 {[%emt 0:02:24]} c2 {[%emt 0:00:08]} 48. Kc3 {[%emt 0:00:21]} Kf8 {[%emt 0:00:31]} 49. Kd2 {[%emt 0:00:42]} Ke8 {[%emt 0:00:06]} 50. Ra1 {[%emt 0:00:10]} Kd7 {[%emt 0:00:31]} 51. Ra7+ {[%emt 0:00:37]} Kd8 {[%emt 0:00:25]} 52. b6 {[%emt 0:00:52]} Re6 {[%emt 0:01:13]} 53. Ra8+ {[%emt 0:00:40]} Kd7 {[%emt 0:00:40]} 54. b7 {[%emt 0:00:31]} Rc6 {[%emt 0:00:15]} 55. Rd8+ {[%emt 0:01:37]} Kxd8 {[%emt 0:00:04]} 56. b8=Q+ {[%emt 0:00:14]} Kd7 {[%emt 0:00:48]} 57. Qb7+ {[%emt 0:01:42]} Kd6 {[%emt 0:00:03]} 58. Qb4+ {[%emt 0:00:32]} Kd5 {[%emt 0:01:08]} 59. Qb3+ {[%emt 0:00:21]} 1/2-1/2

[Event "DVM U12W 2021"]
[Site "Willingen"]
[Date "2022.08.15"]
[Round "5"]
[White "Shynkar, Darya"]
[Black "Mo, Keyou"]
[Result "1-0"]
[ECO "D55"]
[WhiteElo "1001"]
[BlackElo "1264"]
[Annotator "NA RC"]
[PlyCount "87"]
[EventDate "2022.08.12"]
[EventType "team-tourn"]
[EventRounds "7"]
[EventCountry "GER"]
[SourceTitle "playchess.com"]
[Source "ChessBase"]
[SourceQuality "1"]
[TimeControl "40/5400+30:1800+30"]

1. d4 {[%emt 0:00:02]} d5 {[%emt 0:00:00]} 2. c4 {[%emt 0:00:06]} e6 {[%emt 0:00:00]} 3. Nc3 {[%emt 0:00:07]} Nf6 {[%emt 0:00:00]} 4. cxd5 {[%emt 0:00:15]} exd5 {[%emt 0:00:00]} 5. Bg5 {[%emt 0:00:18]} Be7 {[%emt 0:00:01]} 6. e3 {[%emt 0:00:14]} O-O {[%emt 0:00:15]} 7. Qc2 {[%emt 0:00:50]} h6 {[%emt 0:00:19]} 8. Bh4 {[%emt 0:00:45]} b6 {[%emt 0:00:16]} 9. Bd3 {[%emt 0:01:20]} Bb7 {[%emt 0:02:12]} 10. Nf3 {[%emt 0:02:08]} Nbd7 {[%emt 0:04:10]} 11. O-O {[%emt 0:02:43]} Re8 {[%emt 0:02:46]} 12. Rac1 {[%emt 0:05:09]} a6 {[%emt 0:05:17]} 13. Bg3 {[%emt 0:05:50]} c5 {[%emt 0:07:46]} 14. b3 {[%emt 0:08:14]} Rc8 {[%emt 0:01:40]} 15. Qb2 {[%emt 0:08:27]} Nb8 {[%emt 0:02:20]} 16. Bf5 {[%emt 0:04:02]} Nfd7 {[%emt 0:01:33]} 17. Ne5 {[%emt 0:00:56]} Nxe5 {[%emt 0:00:37]} 18. Bxe5 {[%emt 0:00:21]} Rc6 {[%emt 0:00:49]} 19. Bxb8 {[%emt 0:01:01]} Qxb8 {[%emt 0:00:39]} 20. Bd7 {[%emt 0:02:10]} Rec8 {[%emt 0:00:22]} 21. Bxc6 {[%emt 0:00:09]} Rxc6 {[%emt 0:02:09]} 22. Nxd5 {[%emt 0:00:32]} Rg6 {[%emt 0:00:12]} 23. Nxe7+ {[%emt 0:00:21]} Kh7 {[%emt 0:00:13]} 24. Nxg6 {[%emt 0:00:15]} fxg6 {[%emt 0:01:18]} 25. dxc5 {[%emt 0:00:20]} bxc5 {[%emt 0:00:40]} 26. Rxc5 {[%emt 0:00:30]} Qd6 {[%emt 0:02:20]} 27. Rfc1 {[%emt 0:01:19]} Kg8 {[%emt 0:00:24]} 28. Rc7 {[%emt 0:00:16]} Kf8 {[%emt 0:00:12]} 29. Qxg7+ {[%emt 0:00:08]} Ke8 {[%emt 0:00:26]} 30. Qg8+ {[%emt 0:00:08]} Qf8 {[%emt 0:00:11]} 31. Rc8+ {[%emt 0:00:13]} Bxc8 {[%emt 0:00:05]} 32. Rxc8+ {[%emt 0:00:09]} Kd7 {[%emt 0:00:11]} 33. Qxf8 {[%emt 0:00:13]} Ke6 {[%emt 0:00:24]} 34. Re8+ {[%emt 0:00:17]} Kd5 {[%emt 0:00:16]} 35. Qf7+ {[%emt 0:00:15]} Kd6 {[%emt 0:00:17]} 36. Re6+ {[%emt 0:00:07]} Kc5 {[%emt 0:00:24]} 37. Qc7+ {[%emt 0:00:18]} Kd5 {[%emt 0:00:09]} 38. Rd6+ {[%emt 0:00:12]} Ke4 {[%emt 0:00:08]} 39. Qe7+ {[%emt 0:00:14]} Kf5 {[%emt 0:00:13]} 40. Rf6+ {[%emt 0:00:10]} Kg4 {[%emt 0:00:44]} 41. f3+ {[%emt 0:30:11]} Kh5 {[%emt 0:30:14]} 42. Qe5+ {[%emt 0:00:13]} g5 {[%emt 0:00:14]} 43. g4+ {[%emt 0:00:09]} Kh4 {[%emt 0:00:05]} 44. Rxh6# 1-0

[Event "DVM U12W 2021"]
[Site "Willingen"]
[Date "2022.08.15"]
[Round "5"]
[White "Marrufo, Emilia"]
[Black "Xiao, Karoline"]
[Result "0-1"]
[ECO "D02"]
[WhiteElo "970"]
[BlackElo "965"]
[Annotator "NA RC"]
[PlyCount "124"]
[EventDate "2022.08.12"]
[EventType "team-tourn"]
[EventRounds "7"]
[EventCountry "GER"]
[SourceTitle "playchess.com"]
[Source "ChessBase"]
[SourceQuality "1"]
[TimeControl "40/5400+30:1800+30"]

1. d4 {[%emt 0:00:07]} c6 {[%emt 0:03:04]} 2. Bf4 {[%emt 0:00:14]} d5 {[%emt 0:01:24]} 3. e3 {[%emt 0:00:23]} Bf5 {[%emt 0:01:52]} 4. c3 {[%emt 0:00:23]} Nf6 {[%emt 0:01:10]} 5. Nf3 {[%emt 0:00:26]} e6 {[%emt 0:01:06]} 6. Nbd2 {[%emt 0:00:32]} Nbd7 {[%emt 0:01:16]} 7. Ne5 {[%emt 0:03:04]} Bd6 {[%emt 0:04:20]} 8. Be2 {[%emt 0:00:52]} O-O {[%emt 0:01:52]} 9. O-O {[%emt 0:01:40]} Qc7 {[%emt 0:04:27]} 10. Ndf3 {[%emt 0:01:37]} Ne4 {[%emt 0:04:02]} 11. g3 {[%emt 0:04:34]} f6 {[%emt 0:01:23]} 12. Nxd7 {[%emt 0:00:16]} Qxd7 {[%emt 0:02:33]} 13. Bxd6 {[%emt 0:02:53]} Qxd6 {[%emt 0:01:40]} 14. Bd3 {[%emt 0:02:58]} Bg4 {[%emt 0:03:35]} 15. Be2 {[%emt 0:08:45]} Rae8 {[%emt 0:02:27]} 16. Nd2 {[%emt 0:02:45]} Bf5 {[%emt 0:02:45]} 17. Bf3 {[%emt 0:04:52]} e5 {[%emt 0:02:26]} 18. Qc2 {[%emt 0:06:21]} Bh3 {[%emt 0:00:49]} 19. Rfe1 {[%emt 0:00:52]} Nxd2 {[%emt 0:00:21]} 20. Qxd2 {[%emt 0:00:14]} e4 {[%emt 0:00:45]} 21. Bg2 {[%emt 0:00:54]} Bxg2 {[%emt 0:00:07]} 22. Kxg2 {[%emt 0:04:57]} f5 {[%emt 0:04:08]} 23. Re2 {[%emt 0:01:33]} Rf6 {[%emt 0:01:12]} 24. Rae1 {[%emt 0:01:49]} Rh6 {[%emt 0:03:22]} 25. b3 {[%emt 0:01:05]} Rh5 {[%emt 0:02:27]} 26. c4 {[%emt 0:00:49]} Qh6 {[%emt 0:01:01]} 27. h4 {[%emt 0:00:39]} g5 {[%emt 0:01:19]} 28. Rh1 {[%emt 0:02:52]} gxh4 {[%emt 0:00:29]} 29. Rxh4 {[%emt 0:02:33]} Rxh4 {[%emt 0:00:21]} 30. gxh4 {[%emt 0:01:00]} Qg6+ {[%emt 0:00:50]} 31. Kf1 {[%emt 0:02:03]} Re7 {[%emt 0:01:49]} 32. Re1 {[%emt 0:00:43]} Rg7 {[%emt 0:01:46]} 33. Qd1 {[%emt 0:00:28]} Qg2+ {[%emt 0:00:49]} 34. Ke2 {[%emt 0:02:25]} Kh8 {[%emt 0:01:14]} 35. Rg1 {[%emt 0:00:19]} Qxg1 {[%emt 0:00:06]} 36. Qxg1 {[%emt 0:00:15]} Rxg1 {[%emt 0:00:38]} 37. cxd5 {[%emt 0:00:10]} cxd5 {[%emt 0:00:23]} 38. f4 {[%emt 0:00:32]} Rg2+ {[%emt 0:00:22]} 39. Kf1 {[%emt 0:00:09]} Rxa2 {[%emt 0:00:14]} 40. Ke1 {[%emt 0:00:22]} a5 {[%emt 0:00:18]} 41. Kd1 {[%emt 0:30:21]} a4 {[%emt 0:30:06]} 42. bxa4 {[%emt 0:00:05]} Rxa4 {[%emt 0:00:07]} 43. Kc1 {[%emt 0:00:03]} Ra2 {[%emt 0:00:06]} 44. Kb1 {[%emt 0:00:06]} Rh2 {[%emt 0:00:09]} 45. Kc1 {[%emt 0:00:05]} b5 {[%emt 0:00:06]} 46. Kb1 {[%emt 0:00:06]} b4 {[%emt 0:00:02]} 47. Kc1 {[%emt 0:01:09]} b3 {[%emt 0:00:10]} 48. Kb1 {[%emt 0:00:30]} b2 {[%emt 0:00:07]} 49. h5 {[%emt 0:00:28]} Rxh5 {[%emt 0:00:13]} 50. Kxb2 {[%emt 0:00:14]} Rh2+ {[%emt 0:00:08]} 51. Kc1 {[%emt 0:00:02]} Rf2 {[%emt 0:00:11]} 52. Kd1 {[%emt 0:00:05]} Rf3 {[%emt 0:00:07]} 53. Kd2 {[%emt 0:00:03]} h5 {[%emt 0:00:08]} 54. Ke2 {[%emt 0:00:11]} h4 {[%emt 0:00:04]} 55. Kd2 {[%emt 0:00:05]} h3 {[%emt 0:00:09]} 56. Ke2 {[%emt 0:00:11]} h2 {[%emt 0:00:06]} 57. Kd2 h1=Q {[%emt 2:21:55]} 58. Kc3 {[%emt 0:01:06]} Qd1 {[%emt 0:00:00]} 59. Kb4 {[%emt 0:00:16]} Qc1 {[%emt 0:00:00]} 60. Kb5 {[%emt 0:00:08]} Rf2 {[%emt 0:00:00]} 61. Kb6 {[%emt 0:00:05]} Rb2+ {[%emt 0:00:00]} 62. Ka5 Qa1# {[%emt 0:01:35]} 0-1

[Event "DVM U12W 2021"]
[Site "Willingen"]
[Date "2022.08.15"]
[Round "5"]
[White "Engeln, Helene"]
[Black "Peglau, Lorena"]
[Result "0-1"]
[ECO "C01"]
[WhiteElo "956"]
[BlackElo "1207"]
[Annotator "NA RC"]
[PlyCount "122"]
[EventDate "2022.08.12"]
[EventType "team-tourn"]
[EventRounds "7"]
[EventCountry "GER"]
[SourceTitle "playchess.com"]
[Source "ChessBase"]
[SourceQuality "1"]
[TimeControl "40/5400+30:1800+30"]

1. e4 {[%emt 0:00:06]} e6 {[%emt 0:00:02]} 2. Nf3 {[%emt 0:00:08]} d5 {[%emt 0:00:05]} 3. exd5 {[%emt 0:00:04]} exd5 {[%emt 0:00:09]} 4. d4 {[%emt 0:00:17]} Nf6 {[%emt 0:00:08]} 5. Nc3 {[%emt 0:00:10]} Bf5 {[%emt 0:00:20]} 6. Bd3 {[%emt 0:00:52]} Bg6 {[%emt 0:00:11]} 7. Bg5 {[%emt 0:02:20]} Nbd7 {[%emt 0:00:28]} 8. O-O {[%emt 0:04:48]} Nb6 {[%emt 0:01:50]} 9. Ne5 {[%emt 0:09:55]} Bxd3 {[%emt 0:01:31]} 10. Re1 {[%emt 0:00:54]} Be7 {[%emt 0:03:14]} 11. Qxd3 {[%emt 0:03:52]} O-O {[%emt 0:00:20]} 12. Qg3 {[%emt 0:00:26]} c6 {[%emt 0:04:52]} 13. Bh6 {[%emt 0:04:24]} Nh5 {[%emt 0:04:13]} 14. Qg4 {[%emt 0:00:29]} Bf6 {[%emt 0:01:01]} 15. Qxh5 {[%emt 0:01:26]} gxh6 {[%emt 0:00:25]} 16. Qxh6 {[%emt 0:02:58]} Bg7 {[%emt 0:00:30]} 17. Qh5 {[%emt 0:04:27]} Qf6 {[%emt 0:00:22]} 18. a4 {[%emt 0:04:22]} a5 {[%emt 0:00:40]} 19. Re3 {[%emt 0:02:07]} Qh6 {[%emt 0:02:42]} 20. Qf5 {[%emt 0:02:01]} Qf6 {[%emt 0:01:15]} 21. Rf3 {[%emt 0:03:08]} Qxf5 {[%emt 0:03:20]} 22. Rxf5 {[%emt 0:00:13]} Rae8 {[%emt 0:00:45]} 23. Re1 {[%emt 0:01:33]} Re7 {[%emt 0:00:50]} 24. Re3 {[%emt 0:00:37]} Rfe8 {[%emt 0:02:53]} 25. Rg3 {[%emt 0:01:19]} Kh8 {[%emt 0:00:49]} 26. Rxf7 {[%emt 0:04:31]} Bxe5 {[%emt 0:01:47]} 27. Rxe7 {[%emt 0:00:47]} Rxe7 {[%emt 0:00:29]} 28. dxe5 {[%emt 0:00:41]} Rxe5 {[%emt 0:00:09]} 29. f4 {[%emt 0:01:47]} Rf5 {[%emt 0:03:25]} 30. Ne2 {[%emt 0:00:58]} Nxa4 {[%emt 0:00:59]} 31. b3 {[%emt 0:01:04]} Nb2 {[%emt 0:00:35]} 32. Re3 {[%emt 0:00:22]} b5 {[%emt 0:00:47]} 33. Re5 {[%emt 0:01:29]} Rxe5 {[%emt 0:00:22]} 34. fxe5 {[%emt 0:00:21]} Kg8 {[%emt 0:00:07]} 35. Nd4 {[%emt 0:00:24]} Kf7 {[%emt 0:02:26]} 36. Nxc6 {[%emt 0:00:06]} a4 {[%emt 0:00:28]} 37. Nd8+ {[%emt 0:00:41]} Ke7 {[%emt 0:00:29]} 38. Nc6+ {[%emt 0:00:06]} Ke6 {[%emt 0:00:17]} 39. h4 {[%emt 0:01:02]} a3 {[%emt 0:00:11]} 40. Nb4 {[%emt 0:00:26]} Kxe5 {[%emt 0:00:17]} 41. g4 {[%emt 0:31:48]} d4 {[%emt 0:31:39]} 42. h5 {[%emt 0:00:44]} Kf4 {[%emt 0:01:11]} 43. Kf1 {[%emt 0:02:18]} Kxg4 {[%emt 0:00:51]} 44. Ke2 {[%emt 0:00:16]} Kxh5 {[%emt 0:00:16]} 45. Kd2 {[%emt 0:00:08]} Kg4 {[%emt 0:00:20]} 46. Kc1 {[%emt 0:00:09]} h5 {[%emt 0:00:17]} 47. Nd5 {[%emt 0:01:47]} h4 {[%emt 0:00:28]} 48. Nf6+ {[%emt 0:00:14]} Kg3 {[%emt 0:00:20]} 49. Ne4+ {[%emt 0:00:18]} Kg4 {[%emt 0:01:21]} 50. Kb1 {[%emt 0:00:17]} h3 {[%emt 0:01:25]} 51. Nf2+ {[%emt 0:00:08]} Kg3 {[%emt 0:00:10]} 52. Nxh3 {[%emt 0:00:01]} Kxh3 {[%emt 0:00:13]} 53. Ka2 {[%emt 0:01:24]} b4 {[%emt 0:00:14]} 54. c4 {[%emt 0:00:20]} dxc3 {[%emt 0:00:33]} 55. Kb1 {[%emt 0:00:49]} Kg3 {[%emt 0:00:25]} 56. Ka2 {[%emt 0:00:47]} c2 {[%emt 0:00:16]} 57. Ka1 {[%emt 0:00:18]} c1=Q+ {[%emt 0:00:16]} 58. Ka2 {[%emt 0:00:06]} Qd2 {[%emt 0:00:30]} 59. Ka1 {[%emt 0:00:24]} Qc2 {[%emt 0:00:26]} 60. Ka2 {[%emt 0:00:21]} Nd3+ {[%emt 0:00:21]} 61. Ka1 {[%emt 0:00:16]} Qb2# {[%emt 0:00:12]} 0-1

[Event "DVM U12W 2021"]
[Site "Willingen"]
[Date "2022.08.15"]
[Round "5"]
[White "Hovhannisyan, Sofia"]
[Black "Guliyeva, Zahra"]
[Result "0-1"]
[ECO "C47"]
[WhiteElo "935"]
[BlackElo "834"]
[Annotator "NA RC"]
[PlyCount "116"]
[EventDate "2022.08.12"]
[EventType "team-tourn"]
[EventRounds "7"]
[EventCountry "GER"]
[SourceTitle "playchess.com"]
[Source "ChessBase"]
[SourceQuality "1"]
[TimeControl "40/5400+30:1800+30"]

1. e4 {[%emt 0:00:08]} e5 {[%emt 0:00:00]} 2. Nf3 {[%emt 0:00:10]} Nc6 {[%emt 0:00:11]} 3. d4 {[%emt 0:03:13]} d6 {[%emt 0:01:44]} 4. Nc3 {[%emt 0:00:18]} Nf6 {[%emt 0:01:04]} 5. Bg5 {[%emt 0:01:13]} Be7 {[%emt 0:00:52]} 6. Bb5 {[%emt 0:01:28]} Bg4 {[%emt 0:03:49]} 7. d5 {[%emt 0:01:12]} a6 {[%emt 0:03:56]} 8. dxc6 axb5 {[%emt 0:19:51]} 9. cxb7 {[%emt 0:02:03]} Rb8 {[%emt 0:00:00]} 10. Nxb5 {[%emt 0:02:49]} Rxb7 {[%emt 0:00:00]} 11. Bxf6 {[%emt 0:01:14]} Rxb5 {[%emt 0:00:00]} 12. Bxg7 {[%emt 0:01:27]} Rg8 {[%emt 0:00:00]} 13. Qd3 {[%emt 0:02:23]} Rxb2 {[%emt 0:00:00]} 14. Bh6 {[%emt 0:02:18]} Qa8 {[%emt 0:00:00]} 15. a4 {[%emt 0:02:05]} Bh5 {[%emt 0:00:00]} 16. Bc1 {[%emt 0:01:35]} Rb4 {[%emt 0:00:00]} 17. Be3 {[%emt 0:00:51]} Rxg2 {[%emt 0:01:39]} 18. Rg1 {[%emt 0:00:16]} Bxf3 {[%emt 0:08:18]} 19. Rxg2 {[%emt 0:00:50]} Bxg2 {[%emt 0:01:32]} 20. Ke2 {[%emt 0:00:19]} Bxe4 {[%emt 0:02:29]} 21. Qc3 {[%emt 0:00:45]} Bf3+ {[%emt 0:02:06]} 22. Ke1 {[%emt 0:01:15]} Qa6 {[%emt 0:00:52]} 23. Qd2 {[%emt 0:00:57]} Rg4 {[%emt 0:01:29]} 24. Qd3 {[%emt 0:00:16]} Rg1+ {[%emt 0:00:34]} 25. Kd2 {[%emt 0:00:22]} Qa5+ {[%emt 0:01:23]} 26. Qc3 Qd5+ {[%emt 0:58:31]} 27. Qd3 {[%emt 0:02:23]} Qa5+ {[%emt 0:00:00]} 28. Qc3 {[%emt 0:00:44]} Qa6 {[%emt 0:00:00]} 29. Rxg1 {[%emt 0:00:14]} Qe2+ {[%emt 0:00:00]} 30. Kc1 {[%emt 0:01:24]} Bh4 {[%emt 0:00:00]} 31. Re1 {[%emt 0:03:23]} Qa6 {[%emt 0:00:00]} 32. Qxc7 {[%emt 0:01:35]} Qxa4 {[%emt 0:00:00]} 33. Rg1 {[%emt 0:00:26]} Qa1+ {[%emt 0:00:00]} 34. Kd2 {[%emt 0:00:58]} Qxg1 {[%emt 0:00:00]} 35. Qb8+ {[%emt 0:00:12]} Bd8 {[%emt 0:00:00]} 36. Bb6 {[%emt 0:00:12]} Qd1+ {[%emt 0:00:00]} 37. Kc3 {[%emt 0:01:03]} Qe1+ {[%emt 0:00:00]} 38. Kd3 {[%emt 0:01:05]} Qe4+ {[%emt 0:00:00]} 39. Kc3 {[%emt 0:01:16]} Qc6+ {[%emt 0:00:00]} 40. Kd3 {[%emt 0:00:13]} Qe4+ {[%emt 0:00:00]} 41. Kc3 {[%emt 0:30:51]} Qc6+ {[%emt 0:02:37]} 42. Kd3 {[%emt 0:01:36]} Qxb6 {[%emt 0:01:27]} 43. Qxb6 {[%emt 0:00:08]} Bxb6 {[%emt 0:00:50]} 44. Kc4 {[%emt 0:00:11]} Bxf2 {[%emt 0:00:25]} 45. Kb5 {[%emt 0:00:06]} Be4 {[%emt 0:01:23]} 46. c3 {[%emt 0:00:24]} Bf5 {[%emt 0:00:22]} 47. Kc6 {[%emt 0:00:07]} e4 {[%emt 0:00:18]} 48. Kxd6 {[%emt 0:00:04]} e3 {[%emt 0:00:12]} 49. c4 {[%emt 0:00:08]} e2 {[%emt 0:00:15]} 50. c5 {[%emt 0:00:04]} e1=Q {[%emt 0:00:27]} 51. Kc6 {[%emt 0:00:07]} Qe6+ {[%emt 0:00:17]} 52. Kb5 {[%emt 0:00:02]} Qe3 {[%emt 0:00:51]} 53. Ka4 {[%emt 0:00:16]} Qe4+ {[%emt 0:00:17]} 54. Ka5 {[%emt 0:00:15]} Qa8+ {[%emt 0:00:33]} 55. Kb5 {[%emt 0:00:13]} Bd7+ {[%emt 0:00:29]} 56. Kb6 {[%emt 0:00:06]} Qc6+ 57. Ka7 {[%emt 0:04:29]} Bxc5+ {[%emt 0:01:22]} 58. Kb8 Qc8# {[%emt 0:00:22]} 0-1